Cogmind - Beta 13 @@@ ROGUE MODE // 2024.04.06 @ 18:29:03 Player: chexo4 Result: Self-destructed Performance ------------- Evolutions (1) 500 Regions Visited (3) 600 Robots Destroyed (28) 140 Value Destroyed (309) 309 Prototype IDs (0) 0 Alien Tech Used (0) 0 Bonus (-18) -18 TOTAL SCORE: 1531 Bonus ------- Friendly Fire -18 Cogmind --------- Core Integrity 208/400 Matter 254/300 Energy 69/100 System Corruption 0% Temperature Cool (0) Movement Core (400) Ox7 Location -9/Materials Parts ------- > --- POWER (1) -------- (None) > --- PROPULSION (4) --- (None) > --- UTILITY (2) ------ Large Storage Unit Improved Terrain Scanner > --- WEAPON (2) ------- Light Assault Rifle > --- INVENTORY (15) --- Wheel Wheel Flight Unit Flight Unit Flight Unit Huge Storage Unit Mining Laser Peak State ------------ > --- POWER ------------ Light Nuclear Core > --- PROPULSION ------- Compact Wheel Compact Wheel > --- UTILITY ---------- Large Storage Unit Improved Terrain Scanner > --- WEAPON ----------- Beam Cannon Light Assault Rifle > --- INVENTORY -------- Light Ion Engine Flight Unit Flight Unit Improved Terrain Scanner [Rating: 11] Favorites ----------- Power Light Ion Engine Engine Light Ion Engine Power Core Light Nuclear Core Propulsion Compact Wheel Wheel Compact Wheel Flight Unit Flight Unit Utility Improved Terrain Scanner Device Improved Terrain Scanner Storage Large Storage Unit Weapon Light Assault Rifle Energy Gun EM Pulse Gun Energy Cannon Beam Cannon Ballistic Gun Light Assault Rifle Build | -11 -10 -10 -9 ------- Run | Yrd Mat Min Mat Slots Evolved 2 | . . . 2 Power . | . . . . Propulsion 2 | . . . 2 Utility . | . . . . Weapon . | . . . . Parts Attached 25 | 7 9 1 8 Power 3 | 1 2 . . Engine 2 | 1 1 . . Core 1 | . 1 . . Reactor . | . . . . Propulsion 13 | 2 3 1 7 Treads . | . . . . Leg . | . . . . Wheel 10 | 2 3 1 4 Hover . | . . . . Flight 3 | . . . 3 Utility 4 | 2 2 . . Device 2 | 1 1 . . Storage 2 | 1 1 . . Processor . | . . . . Hackware . | . . . . Protection . | . . . . Artifact . | . . . . Weapon 5 | 2 2 . 1 Energy Gun 1 | 1 . . . Energy Cannon 1 | . 1 . . Ballistic Gun 3 | 1 1 . 1 Ballistic Cannon . | . . . . Launcher . | . . . . Special Weapon . | . . . . Impact Weapon . | . . . . Slashing Weapon . | . . . . Piercing Weapon . | . . . . Special Melee Weapon . | . . . . Unidentified Prototypes . | . . . . Parts Lost 12 | . 4 2 6 Power 2 | . 1 1 . Propulsion 7 | . 2 . 5 Utility . | . . . . Weapon 3 | . 1 1 1 Highest Loss Streak 6 | . 4 2 6 To Critical Strikes . | . . . . Average Slot Usage (%) 93 | . 97 96 68 Engine 5 | . 11 . . Core 6 | . 1 12 . Wheel 27 | . 26 28 29 Device 13 | . 14 14 11 Storage 13 | . 14 14 11 Energy Gun 3 | . 9 . . Energy Cannon 8 | . 7 11 . Ballistic Gun 12 | . 11 14 11 Naked Turns . | . . . . Heaviest Build 30 | 12 30 30 22 Greatest Support 40 | 32 32 32 40 Greatest Overweight (x) 5 | 3 1 . 5 Average Overweight (x) . | . . . 1 Largest Inventory Capacity 15 | 8 15 15 15 Average Capacity 13 | 7 14 15 15 Most Carried 9 | 4 6 9 8 Average Carried 4 | 1 2 8 6 Final Capacity 15 | 8 15 15 15 Final Carried 9 | 1 6 9 7 Class Distribution -------------------- 74% | Mutant 25% | Scavenger-Mutant Dominant Class ---------------- Mutant | -10/Materials Scavenger-Mutant | -10/Mines Scavenger-Mutant | -9/Materials Resources | -11 -10 -10 -9 ----------- Run | Yrd Mat Min Mat Matter Collected 429 | 279 108 19 23 Remotely . | . . . . Salvage Created 972 | 175 547 215 35 Parts 59 | 15 28 11 5 Haulers Intercepted 1 | . 1 . . Recyclers Shooed 1 | . 1 . . Parts Field Recycled . | . . . . Retrieved Matter . | . . . . Parts Self-Destructed . | . . . . Prevented . | . . . . Kills | -11 -10 -10 -9 ------- Run | Yrd Mat Min Mat Combat Hostiles Destroyed 13 | . 7 3 3 Guns 7 | . 3 1 3 Cannons 6 | . 4 2 . Classes Destroyed 6 | 3 3 . . Worker 4 | 2 1 1 . Tunneler 4 | 3 . 1 . Hauler 1 | . 1 . . Recycler 6 | 1 3 2 . Swarmer 9 | . 3 3 3 Grunt 4 | . 4 . . Best Kill Streak 5 | 3 5 5 3 Combat Bots Only 4 | . 4 3 3 Max Kills in Single Turn 2 | 1 2 1 1 Gunslinging . | . . . . Exploded . | . . . . Melee . | . . . . Uniques/NPCs Destroyed . | . . . . Combat | -11 -10 -10 -9 -------- Run | Yrd Mat Min Mat Hostile Shots Fired 154 | . 66 29 59 Missed 41 | . 16 10 15 Damage Taken 1300 | . 536 177 587 Core 390 | . 152 46 192 Absorbed by Shields . | . . . . Core Remaining (%) 60 | 100 . 20 . Volleys Fired 80 | 9 37 16 18 Largest 2 | 2 2 2 1 Hottest 100 | 60 100 80 20 Shots Fired 141 | 18 73 32 18 Gun 104 | 18 52 16 18 Cannon 37 | . 21 16 . Launcher . | . . . . Special . | . . . . Kinetic 70 | 9 27 16 18 Thermal 37 | . 21 16 . Explosive . | . . . . Electromagnetic 34 | 9 25 . . Robot Hit Streak 10 | 6 9 8 10 Robot Miss Streak 4 | 1 4 4 2 Penetration Max . | . . . . Secondary Targets . | . . . . Shots Hit Robots 84 | 12 42 15 15 Core Hits 40 | 7 18 9 6 Critical Kills 1 | . . 1 . Critical Parts Destroyed . | . . . . Critical Strikes 3 | 1 1 1 . Destroy 1 | . . 1 . Corrupt 2 | 1 1 . . Melee Attacks . | . . . . Impact . | . . . . Slashing . | . . . . Piercing . | . . . . Sneak Attacks . | . . . . Combat Hostiles . | . . . . Follow-up Attacks . | . . . . Damage Inflicted 1224 | 186 696 226 116 Guns 640 | 139 337 48 116 Cannons 440 | . 262 178 . Explosions 144 | 47 97 . . Melee . | . . . . Ramming . | . . . . Kinetic 337 | 34 139 48 116 Thermal 584 | 47 359 178 . Explosive . | . . . . Electromagnetic 303 | 105 198 . . Impact . | . . . . Slashing . | . . . . Piercing . | . . . . Highest Corruption . | . . . . Average Corruption . | . . . . Corruption Purged . | . . . . Corruption Blocked . | . . . . Overload Shots . | . . . . Overflow Damage 28 | . 28 . . Projectiles 28 | . 28 . . Explosions . | . . . . Melee . | . . . . Knockbacks . | . . . . Impact . | . . . . Kinetic . | . . . . Secondary . | . . . . Self-Inflicted Damage . | . . . . Shots . | . . . . Rammed . | . . . . Targets Rammed . | . . . . Kicked . | . . . . Crushed . | . . . . Highest Temperature 373 | 40 373 218 2 Average Temperature 95 | 17 123 68 2 Received Heat Transfer 474 | . 246 45 183 Effects 5 | . 5 . . Energy Bleed 2 | . 2 . . Interference 3 | . 3 . . Siege Activations . | . . . . Robots Corrupted . | . . . . Combat Hostiles . | . . . . Parts Fried . | . . . . Impact Corruptions . | . . . . Robots Melted . | . . . . Combat Hostiles . | . . . . Parts Melted . | . . . . Heat Transferred 1075 | . 705 370 . Parts Sabotaged . | . . . . Parts Stolen . | . . . . Parts Stripped . | . . . . Power Chain Reactions 2 | 1 1 . . Alert | -11 -10 -10 -9 ------- Run | Yrd Mat Min Mat Peak Influence 213 | 30 213 186 142 Initial 82 | . 19 82 72 Average 99 | 11 101 130 97 Maximum Alert Level 1 | . 1 . . Low Security (%) 92 | 100 78 100 100 Level 1 7 | . 21 . . Level 2 . | . . . . Level 3 . | . . . . Level 4 . | . . . . Level 5 . | . . . . High Security . | . . . . Max Security . | . . . . Squads Dispatched 1 | . . . 1 Investigation . | . . . . Extermination . | . . . . Reinforcement 1 | . . . 1 Assault . | . . . . Garrison . | . . . . Intercept . | . . . . Searches Triggered . | . . . . Construction Impeded . | . . . . Haulers Reinforced . | . . . . Active Scanning Responses . | . . . . Cargo Convoy Interrupts . | . . . . Stealth | -11 -10 -10 -9 --------- Run | Yrd Mat Min Mat Distress Signals 1 | . 1 . . Communications Jammed . | . . . . Distress Signals . | . . . . Times Spotted 25 | . 12 5 8 Peak Tracking Total 7 | . 6 3 7 Tactical Retreats 3 | . 2 1 . Traps | -11 -10 -10 -9 ------- Run | Yrd Mat Min Mat Traps Triggered . | . . . . Indirectly . | . . . . Trap Hack Attempts . | . . . . Triggered . | . . . . Disarmed . | . . . . Reprogrammed . | . . . . Reused . | . . . . Traps Extracted . | . . . . Installed . | . . . . Triggered . | . . . . Machines | -11 -10 -10 -9 ---------- Run | Yrd Mat Min Mat Machines Disabled . | . . . . Max in Single Turn . | . . . . Machines Repaired . | . . . . Machines Dismantled . | . . . . Machines Sabotaged . | . . . . Overloaded Fab Kills . | . . . . Hacking | -11 -10 -10 -9 --------- Run | Yrd Mat Min Mat Machines Accessed 2 | . 1 . 1 Terminals 1 | . 1 . . Fabricators . | . . . . Repair Stations . | . . . . Recycling Units . | . . . . Scanalyzers 1 | . . . 1 Garrison Access . | . . . . Total Hacks 6 | . 1 . 5 Successful 4 | . 1 . 3 Failed 2 | . . . 2 Catastrophic . | . . . . Database Lockouts . | . . . . Manual . | . . . . Terminals 1 | . 1 . . Fabricators . | . . . . Repair Stations . | . . . . Recycling Units . | . . . . Scanalyzers 5 | . . . 5 Garrison Access . | . . . . Terminal Hacks 1 | . 1 . . Zone Layout 1 | . 1 . . Fabricator Hacks . | . . . . Repair Station Hacks . | . . . . Recycling Unit Hacks . | . . . . Scanalyzer 3 | . . . 3 Insert Component 1 | . . . 1 Analyze 2 | . . . 2 Garrison Access Hacks . | . . . . Unauthorized Hacks . | . . . . Terminals . | . . . . Fabricators . | . . . . Repair Stations . | . . . . Recycling Units . | . . . . Scanalyzers . | . . . . Garrison Access . | . . . . Data Cores Recovered . | . . . . Used . | . . . . Hacking Detections 1 | . . . 1 Full Trace Events 1 | . . . 1 Feedback Events . | . . . . Feedback Blocked . | . . . . Robot Schematics Acquired . | . . . . Robots Built . | . . . . Authchips . | . . . . Time . | . . . . Total Robot Build Rating . | . . . . Part Schematics Acquired 1 | . . . 1 Parts Built . | . . . . Authchips . | . . . . Time . | . . . . Total Part Build Rating . | . . . . Parts Repaired . | . . . . Time . | . . . . Parts Recycled . | . . . . Recycled Matter . | . . . . Retrieved Matter . | . . . . Retrieved Components . | . . . . Parts Scanalyzed 1 | . . . 1 Part Schematics Acquired 1 | . . . 1 Parts Damaged . | . . . . Bothacking | -11 -10 -10 -9 ------------ Run | Yrd Mat Min Mat Used RIF Installer . | . . . . Robots Hacked . | . . . . Non-combat . | . . . . Combat . | . . . . Robot Hacks Applied . | . . . . Relay Couplers Released . | . . . . Fabnet Peak Effective % . | . . . . Robots Rewired . | . . . . Allies Hacked . | . . . . Hacks Repelled . | . . . . Allies | -11 -10 -10 -9 -------- Run | Yrd Mat Min Mat Total Allies 1 | . . 1 . Largest Group 1 | . . 1 . Highest-Rated Group 31 | . . 31 . Highest-Rated Ally 31 | . . 31 . Total Orders . | . . . . Ally Attacks 5 | . . 5 . Total Damage 20 | . . 20 . Kills . | . . . . Allies Corrupted . | . . . . Allies Melted . | . . . . Intel | -11 -10 -10 -9 ------- Run | Yrd Mat Min Mat Robot Analysis Total . | . . . . Derelict Logs Recovered 1 | . . 1 . Drone Launches . | . . . . Drone Recoveries . | . . . . Exploration | -11 -10 -10 -9 ------------- Run | Yrd Mat Min Mat Turns Passed 867 | 124 316 334 93 Spaces Moved 584 | 73 186 284 41 Core 38 | 38 . . . Treads . | . . . . Legs . | . . . . Wheels 538 | 35 186 284 33 Hover . | . . . . Flight 8 | . . . 8 Fastest Speed 50 | 50 100 100 80 Average Speed 102 | 115 100 100 108 Slowest Speed 445 | 200 115 100 445 Overloaded Moves . | . . . . Propulsion Burnouts . | . . . . Robots Hopped . | . . . . Cave-ins Triggered . | . . . . Exploration Rate (%) 18 | 3 17 49 3 Regions Visited 3 Branch Regions 1 Pre-discovered Areas 1 | . . 1 . Known Exits Taken . | . . . . Unknown Exits Taken 3 | 1 1 1 . Scrap Searched 1 | . . 1 . Spaces Dug . | . . . . Terrain Destroyed 9 | 7 2 . . Melee . | . . . . Projectile . | . . . . AOE 9 | 7 2 . . Terrain Rammed . | . . . . Walls Destroyed . | . . . . Machines Disabled . | . . . . Actions | -11 -10 -10 -9 --------- Run | Yrd Mat Min Mat Total 720 | 96 246 305 73 Wait . | . . . . Move 581 | 72 185 283 41 Hop . | . . . . Pick Up 28 | 8 12 4 4 Fast Attach . | . . . . Attach 15 | 7 4 . 4 Detach . | . . . . Swap 10 | . 5 1 4 Drop 6 | . 3 1 2 Fire 80 | 9 37 16 18 Melee . | . . . . Ram . | . . . . Kick . | . . . . Crush . | . . . . Escape Stasis . | . . . . Rewire . | . . . . Trap . | . . . . Miscellaneous . | . . . . Route ------- -11/Scrapyard -10/Materials -10/Mines -9/Materials History --------- Turn | Location | Event 37 | -11/Scrapyard | Discovered new exit (range 12) 125 | -11/Scrapyard | Entered Materials 302 | -10/Materials | Discovered new exit (range 16) 316 | -10/Materials | Build established: Mutant 339 | -10/Materials | Core integrity fell below 50% 381 | -10/Materials | Lost 4 parts (1p2n1w) 441 | -10/Materials | Entered Mines 444 | -10/Mines | Received a Mining Laser from a helpful Derelict 635 | -10/Mines | Learned location of Storage (-9) 648 | -10/Mines | Discovered new exit (range 6) 775 | -10/Mines | Entered Materials 775 | -9/Materials | Evolved 2 slots: Propulsion x2 868 | -9/Materials | Self-destructed Last Messages --------------- Scan incomplete, additional scanning required. >>Scanalyze Scanning: Flight Unit... Schematic downloaded. S-10 Pest destroyed. ALERT: Hostiles spotted, dispatching reinforcements to Terminal M009. S-10 Pest destroyed. Acquired 12 matter. Acquired Lgt. Assault Rifle. Wheel destroyed. Acquired Flight Unit. Critical hit (Burn: +37). Flight Unit destroyed. Acquired Flight Unit. Lgt. Assault Rifle destroyed. Flight Unit destroyed. Acquired 11 matter. Wheel destroyed. Flight Unit destroyed. Map ----- +----------------------------------------------------+ | ??????????????????????????????????????? | | ??????????????????????????????????????? | | ??????????????????????????????????????? | | ??????????????????????????????????????? | | ??????????????????????????????????????? | | ??????????????????????????????????????? | | ??????????????????????????????????????? | | ??????????????????????????????????????? | | ?????????????????????????????? ?????? | | ?????????????????????????????? #???? | | ???????????????????????? ????? ????? | | ??????????????????#??????????? ????? | | ?????????????????????????????? ????? | | ????????????????? ???????????? #???? | | ?????????????????????????????? #????? | | ?????????????????#?#?????????# #????? | | ?????????????????????????????# +????? | | ???????????????#??? ??????? ?# #????? | | ??????????? ???????"?????????# #??? ? | | ???????????????????"?"???????# #????? | | ?????????????????????????? ?## #????# | | ????????????????? ??????????# #????? | | ???????????????????########### +????? | | ???????????????????## "" Y/ #????? | | ????????????????????# ""S Y####+##????? | | ????????????????????# ""%@*#???? ?????? | | ?????????????#??????# #??????????? | | ??????????????????? # #???? ?????? | | ???????????? ???????# #?? ?????? | | ????????????????????####g####?????????# | | ??????????#?????????# #????????#? | | ????????????????????# g == #?????????? | | ?????????????????? ?# #?????????? | | ?????????????????"??# #####?????????? | | ??????????#?????????# #?????????????? | | ???????????????? ?? # #????? ??????#? | | ????????????????????# #??????????#??? | | ???????????????????? #?????????????? | | ??????????????????? +????? ???????? | | ?????????????????? #?????????????? | | ?????????????????#### #?????????????? | | ????????????????????# #?? ??????????? | | ????????????????????# #? ???????????? | | ????????????????????+ #?????????????? | | ????????????????????# #?????????????? | | ????????????????????# ??????????????? | | ????????????????????# ??????????????? | | ????????????????????? ??????????????? | | ??????????????????????????????????????? | | ??????????????????????????????????????? | +----------------------------------------------------+ Best States ------------- Heat Dissipation 28 Energy Generation 14 Energy Capacity 160 Matter Stores 300 Matter Capacity 300 Sight Range 16 Terrain Scan Range 16 Terrain Scan Density 10 Evasion (%) 50 Item Schematics ----------------- Flight Unit | -9/Materials | Scanalyzed Robot Schematics ------------------ None Fabricated ------------ Nothing Alien Tech Used ----------------- None Achievements -------------- None Challenges ------------ None Game ------ Seed SuperchargedBehemothFalx Manual? 0 Play Time 00:10:06 Cumulative 9.4 hours Start 2024.04.06 @ 18:20:25 End 2024.04.06 @ 18:29:03 Sessions 1 Manual Loads 0 Difficulty Rogue Special Mode None Game No. 22 Rogue 22 Adventurer 0 Explorer 0 Win Type - Total 0 Types 0/0/0/0/0/0/0/0/0 Lore% 15 Gallery% 19 Achievement% 16 Wizard Run 0 Options --------- Layout 1 ASCII 0 Keyboard 0 Movement Arrows Keybinds 0 Fullscreen 1 Font 24/Smallcaps Map View 50x35 Zoom Use 0% Tactical HUD 0 Map Filters NONE Filters NONE Steam 1 RUN: 404e1f47-92af-4e21-87de-25f026fc848d